{"text_format":"2","workbook":"xlsx","n_sheets":8,"sheets":["Meeting, Offices & Academic","Committees and SAE's","Fair Participation","BVD CDEs and LDEs","State CDEs, SLC and WLC","Conventions and Leadership","Financing, Recruting, Profic","Totals"],"not_rendered":{"charts":0,"images":0,"macros":0,"external_links":0,"defined_names":0,"comments":1,"pivot_tables":0},"unopened":[],"bounds":{"document_bytes":16777216,"sheet_cells":100000,"run_cost":"one","rows_first":2000,"rows_last":500,"rows_between":2000,"halvings":0,"cell_chars":16384,"cell_head_chars":4096},"cells_cut":0,"cells_raw":0,"read":"whole","date_system":"1900"}

{"sheet":"Meeting, Offices & Academic","index":0,"n_rows":35,"n_cols":5,"rows_kept":35,"cut":false,"hidden":false,"merged":[[6,1,6,4],[0,0,0,4],[1,0,1,4],[2,0,2,4],[5,1,5,2],[7,1,7,4],[34,0,34,2],[9,0,9,4],[15,0,15,4],[20,0,20,4],[24,0,24,4]]}
["MERIDIAN FFA CHAPTER"]
["LETTER AWARD APPLICATION 2025"]
["Should include all activities from last year's banquet to this year's banquet."]
[]
["Name______________________",null,"School: _____________________"]
["Total Points:",{"$f":"Totals!E19","v":0}]
["What Grade Level are you? ","Letter award year you are applying for?"]
["Freshman, Sophmore, Junior, or Senior","1st   2nd   3rd   4th "]
["Activity:","Value:","Maximum:","Quantity:","Total:"]
["Meeting Attendance:"]
["A.  Chapter (each) - School Year 2024-2025",40,"N/A",null,{"$f":"B11*D11","v":0}]
["B.  POA (Meridian High School) - 2024",100,100,null,0]
["D.  Committee Meetings (each) (24-25)",15,150,null,0]
["E.  Attend Chapter Banquet (2024)",50,50,null,0]
["G. District Officer Sifting Committee - 2025",75,75,null,0]
["Scholarship: Per Semester (Spring & Fall)"]
["“A” grade earned per class (each)",40,640,null,{"$f":"B17*D17","v":0}]
["“B” grade earned per class (each)",20,320,null,{"$f":"B18*D18","v":0}]
["“F” grade earned per class (each)",-40,-640,null,{"$f":"B19*D19","v":0}]
["National Honor Society Member",50,50,null,{"$f":"B20*D20","v":0}]
["Degrees Earned"]
["Greenhand Degree",100,100,null,{"$f":"B22*D22","v":0}]
["Chapter FFA Degree",150,150,null,{"$f":"B23*D23","v":0}]
["State FFA Degree",300,300,null,{"$f":"B24*D24","v":0}]
["Offices Held:"]
["Student Body",50,50,null,{"$f":"B26*D26","v":0}]
["Home Room Rep.",25,25,null,0]
["Meridian FFA Chapter",100,100,null,0]
["Boise Valley District",250,250,null,0]
["Idaho State Association",400,400,null,0]
["Meridian FFA Chapter President",50,50,null,0]
["Applied for Chapter Office",50,50,null,0]
["Applied for District Office",75,75,null,0]
["Applied for State Office",100,100,null,0]
[null,null,null,"Total Page 1:",{"$f":"SUM(E11:E34)","v":0}]

{"sheet":"Committees and SAE's","index":1,"n_rows":37,"n_cols":5,"rows_kept":37,"cut":false,"hidden":false,"merged":[[12,0,12,4],[1,0,1,4],[2,0,2,4],[7,0,7,4],[36,0,36,2]]}
["Activity:","Value:","Maximum:","Quantity:","Total:"]
["COMMITTEES (2024-2025): If you helped at an event (not just attended) enter points under a committee member."]
["Committee Chairman List Committee(s):"]
[null,75,"75 ea",null,{"$f":"B4*D4","v":0}]
[" ",75,"75 ea",null,{"$f":"B5*D5","v":0}]
[null,75,"75 ea",null,{"$f":"B6*D6","v":0}]
[null,75,"75 ea",null,{"$f":"B7*D7","v":0}]
["Committee Member List Committee(s): Include all committee activities you helped with this school year."]
[null,30,"30 ea",null,{"$f":"B9*D9","v":0}]
[null,30,"30 ea",null,{"$f":"B10*D10","v":0}]
[null,30,"30 ea",null,{"$f":"B11*D11","v":0}]
[null,30,"30 ea",null,{"$f":"B12*D12","v":0}]
["SAE PROJECTS:"]
["Dairy: Mature",50,"N/A",null,{"$f":"B14*D14","v":0}]
["         Young",30,"N/A",null,0]
["Beef: Mature",50,"N/A",null,0]
["        Young",30,"N/A",null,0]
["Horse : Mature",40,"N/A",null,0]
["           Young",30,"N/A",null,0]
["Sheep: Mature",50,"N/A",null,0]
["           Young",30,"N/A",null,0]
["Swine: Mature",50,"N/A",null,0]
["          Young",30,"N/A",null,0]
["Dairy Goats: Mature",50,"N/A",null,0]
["          Young",30,"N/A",null,0]
["Meat Goats: Mature",50,"N/A",null,{"$f":"B26*D26","v":0}]
["          Young",30,"N/A",null,{"$f":"B27*D27","v":0}]
["Bee Boards each",10,"N/A",null,0]
["Crops Per Acre",50,1000,null,0]
["Small Animal per head (Poultry, rabbits, etc)",10,"N/A",null,0]
["Self Labor for Project(s) per hour",5,"N/A",null,0]
["Work Experience per hour",5,"N/A",null,0]
["Volunteer per hour (non-Chapter Activity)",5,"N/A",null,0]
["Greenhouse – per hour watered (weekends/holidays)",5,"N/A",null,0]
["Improvement Projects per hour",5,"N/A",null,0]
["    Please describe:"]
[null,null,null,"Total Page 2:",{"$f":"SUM(E4:E35)","v":0}]

{"sheet":"Fair Participation","index":2,"n_rows":23,"n_cols":5,"rows_kept":23,"cut":false,"hidden":false,"merged":[[11,0,11,4],[1,0,1,4],[22,0,22,2],[21,0,21,3]]}
["Activity:","Value:","Maximum:","Quantity:","Total:"]
["Western Idaho Fair Summer of 2024"]
["WIF:  Dairy or Beef per animal",50,"N/A",null,{"$f":"B3*D3","v":0}]
["WIF: Horse per animal",75,"N/A",null,0]
["WIF: Sheep per animal",45,"N/A",null,0]
["WIF: Swine per animal",40,"N/A",null,0]
["WIF: Goat per animal",45,"N/A",null,{"$f":"B7*D7","v":0}]
["WIF: Poultry per pen",40,"N/A",null,0]
["WIF: Rabbits per animal",25,"N/A",null,0]
["WIF: Ag Mechanics per entry",30,"N/A",null,0]
["WIF: Misc (Specify):",20,"N/A",null,0]
["Canyon County Fair or Jackpot  Summer of 2024"]
["CCF:  Dairy or Beef per animal",50,"N/A",null,0]
["CCF: Horse per animal",75,"N/A",null,0]
["CCF: Sheep per animal",45,"N/A",null,0]
["CCF: Goat per animal",45,"N/A",null,{"$f":"B16*D16","v":0}]
["CCF: Swine per animal",40,"N/A",null,0]
["CCF: Poultry per pen",40,"N/A",null,0]
["CCF: Rabbits per animal",25,"N/A",null,0]
["CCF: Crops per entry",30,"N/A",null,0]
["CCF: Misc (Specify):",20,"N/A",null,0]
["Total for Fairs NOT TO EXCEED 500"]
[null,null,null,"Total Page 3:",{"$f":"SUM(E2:E21)","v":0}]

{"sheet":"BVD CDEs and LDEs","index":3,"n_rows":30,"n_cols":5,"rows_kept":30,"cut":false,"hidden":false,"merged":[[26,0,26,4],[1,0,1,4],[2,0,2,4],[16,0,16,4],[21,0,21,4],[9,0,9,4]]}
["Activity:","Value:","Maximum:","Quantity:","Total:"]
["CAREER DEVELOPMENT EVENTS (CDE’S) at BVD, SLC, MOSCOW, WIF, ETC)"]
["BOISE VALLEY DISTRICT- 2024-2025\nOfficial Team (4) List Team:"]
[null,150,"N/A",null,{"$f":"B4*D4","v":0}]
[null,150,"N/A",null,0]
[null,150,"N/A",null,0]
[null,150,"N/A",null,0]
[null,150,"N/A",null,0]
[null,150,"N/A",null,0]
["Alternate (5th or 6th person) List Team:"]
[null,100,"N/A",null,{"$f":"B11*D11","v":0}]
[null,100,"N/A",null,0]
[null,100,"N/A",null,0]
[null,100,"N/A",null,0]
[null,100,"N/A",null,0]
[null,100,"N/A",null,0]
["Boise Valley District Team Placing: 2024-2025"]
["     First",100,"N/A",null,{"$f":"B18*D18","v":0}]
["     Second",75,"N/A",null,{"$f":"B19*D19","v":0}]
["     Third",50,"N/A",null,{"$f":"B20*D20","v":0}]
["     Fourth",30,"N/A",null,{"$f":"B21*D21","v":0}]
["Boise Valley District Individual Placing: 2024-2025"]
["      First",100,"N/A",null,{"$f":"B23*D23","v":0}]
["      Second",75,"N/A",null,{"$f":"B24*D24","v":0}]
["      Third",50,"N/A",null,{"$f":"B25*D25","v":0}]
["       Fourth",30,"N/A",null,{"$f":"B26*D26","v":0}]
["LDE and CDE Practices- 15 Points per practice, up to 15 total practices for Spring LDEs and CDEs "]
["LDE Practices ",15,15,null,{"$f":"B28*D28","v":0}]
["CDE Practices ",15,15,null,{"$f":"B29*D29","v":0}]
[null,null,null,"Total Page 4:",{"$f":"SUM(E4:E29)","v":0}]

{"sheet":"State CDEs, SLC and WLC","index":4,"n_rows":37,"n_cols":5,"rows_kept":37,"cut":false,"hidden":false,"merged":[[12,0,12,4],[1,0,1,4],[24,0,24,4],[30,0,30,4],[18,0,18,4],[2,0,2,4]]}
["Activity:","Value:","Maximum:","Quantity:","Total:"]
["CAREER DEVELOPMENT EVENTS (CDE’S) (SLC, MOSCOW, WIF, ETC)"]
["State Leadership Convention 2025 (registered and watch session)"]
["Registered (attended)",50,50,null,{"$f":"B4*D4","v":0}]
["Session 1",100,100,null,0]
["Session 2",100,100,null,0]
["Session 3",100,100,null,0]
["Session 4",100,100,null,0]
["Delegate",50,50,null,0]
["Particapated in Workshops",50,200,null,0]
["FFA Foundation Volunteer",50,200,null,0]
["SLC Intern",500,500,null,0]
["IDAHO STATE CDEs June of 2024 and State Leadership Conference 2025\nOfficial Team member (4) List Team:"]
[null,300,300,null,{"$f":"B14*D14","v":0}]
[null,300,300,null,{"$f":"B15*D15","v":0}]
[null,300,300,null,0]
[null,300,300,null,0]
[null,300,300,null,0]
["Alternate (5th or 6th person) List Team:"]
[null,200,null,null,0]
[null,200,null,null,0]
[null,200,null,null,0]
[null,200,null,null,0]
[null,200,null,null,0]
["State Team Placing:"]
["     First",400,null,null,{"$f":"B26*D26","v":0}]
["     Second",300,null,null,{"$f":"B27*D27","v":0}]
["     Third",200,null,null,{"$f":"B28*D28","v":0}]
["     Fourth",150,null,null,{"$f":"B29*D29","v":0}]
["     Fifth",100,null,null,{"$f":"B30*D30","v":0}]
["State Individual Placing:"]
["      First",400,null,null,{"$f":"B32*D32","v":0}]
["      Second",300,null,null,{"$f":"B33*D33","v":0}]
["      Third",200,null,null,{"$f":"B34*D34","v":0}]
["       Fourth",150,null,null,{"$f":"B35*D35","v":0}]
["       Fifth",100,null,null,{"$f":"B36*D36","v":0}]
[null,null,null,"Total Page 5:",{"$f":"SUM(E4:E36)","v":0}]

{"sheet":"Conventions and Leadership","index":5,"n_rows":39,"n_cols":5,"rows_kept":39,"cut":false,"hidden":false,"merged":[[36,0,36,4],[33,0,33,4],[1,0,1,4],[9,0,9,4],[13,0,13,4],[17,0,17,4],[24,0,24,4],[2,0,2,4],[3,0,3,4],[5,0,5,4]]}
["Activity:","Value:","Maximum:","Quantity:","Total:"]
["CAREER DEVELOPMENT EVENTS (CDE’S) (SLC, MOSCOW, WIF, ETC)"]
["NATIONALS: 2024"]
["Official Team (4 individules) List Team:"]
[null,400,400,null,{"$f":"B5*D5","v":0}]
["Alternate (5th or 6th person) List Team:"]
[null,200,200,null,{"$f":"B7*D7","v":0}]
["National Convention Attendance 2023",200,20,null,{"$f":"B8*D8","v":0}]
["National Convention Delegate 2023",300,300,null,{"$f":"B9*D9","v":0}]
["NATIONAL TEAM PLACING 2024: "]
["        Gold",500,"N/A",null,{"$f":"B11*D11","v":0}]
["        Silver",300,"N/A",null,{"$f":"B12*D12","v":0}]
["        Bronze",200,"N/A",null,{"$f":"B13*D13","v":0}]
["NATIONAL INDIVIDUAL PLACING 2024"]
["     Gold",500,"N/A",null,{"$f":"B15*D15","v":0}]
["     Silver",400,"N/A",null,{"$f":"B16*D16","v":0}]
["     Bronze",300,"N/A",null,{"$f":"B17*D17","v":0}]
["PUBLIC SPEAKING (Extemp, Prepared, Creed) 2024-2025"]
["Chapter Run-off participant",75,"N/A",null,{"$f":"B19*D19","v":0}]
["Chapter Winner",250,"N/A",null,0]
["District Winner",300,"N/A",null,0]
["State Finalist (top four)",300,"N/A",null,0]
["National Finalist (top four)",700,"N/A",null,0]
["National Winner (1000)",1000,"N/A",null,0]
["CONVENTIONS 2024-2025"]
["Gem State Leadership Conference",50,50,null,{"$f":"B26*D26","v":0}]
["Cenarrusa Day on the Hill (Luncheon)",25,25,null,0]
["State Leadership Confrence (SLC) Attendance",100,100,null,0]
["SLC Officer Sifting Committee",75,75,null,0]
["SLC 2024 Parliamentarian Test",50,50,null,0]
["SLC Courtecy Corps",25,25,null,0]
["SLC 2024 Tallent",50,50,null,0]
["SLC Day of Service/Convention  Clean Up",10,10,null,0]
["Yearbook Staff: Hours spent on Yearbook website"]
["1 hour  (1 quantity point)",10,"N/A",null,{"$f":"B35*D35","v":0}]
["            Pictures uploaded to Yearbook Snap",5,25,null,{"$f":"B36*D36","v":0}]
["Natioanl Chapter Application: Hours worked filling out the Nat. Chap. "]
["1 hour  (1 quantity point)",20,"N/A",null,{"$f":"B38*D38","v":0}]
[null,null,null,"Total Page 6:",{"$f":"SUM(E5:E38)","v":0}]

{"sheet":"Financing, Recruting, Profic","index":6,"n_rows":21,"n_cols":5,"rows_kept":21,"cut":false,"hidden":false,"merged":[[1,0,1,4],[11,0,11,4],[3,0,3,4]]}
["Chapter Financing and Proficiencies","Value:","Maximum:","Quantity:","Total:"]
["CHAPTER FINANCING"]
["WIF Booth 2024 per scheduled hour",25,"N/A",null,{"$f":"B3*D3","v":0}]
["Work Activities per hour or Per Shift (2024-2025)"]
["Fair/booth set up",25,"N/A",null,{"$f":"B5*D5","v":0}]
["Ag. Expo Speaker",50,300,null,{"$f":"B6*D6","v":0}]
["Tractor Raffle ",20,"N/A",null,{"$f":"B7*D7","v":0}]
["Concessions at home school",20,"N/A",null,0]
["Produce Sales ",20,"N/A",null,0]
["Fruit Sales per pound",0.5,"N/A",null,0]
["Filled our FFA Membership Form",50,"N/A",null,0]
["Recruiting Activities- "]
["Open House/Registration at Home School",20,"N/A",null,{"$f":"B13*D13","v":0}]
["Visiting Freshman Classes ",20,"N/A",null,{"$f":"B14*D14","v":0}]
["Visiting a Middle or Elementry School",20,"N/A",null,{"$f":"B15*D15","v":0}]
["PROFICIENCIES"]
["Applied for Chapter Proficiency ",25,"N/A",null,{"$f":"B17*D17","v":0}]
["Awarded Chapter Proficiency ",50,"N/A",null,{"$f":"B18*D18","v":0}]
["Applied for State Proficiency ",75,"N/A",null,{"$f":"B19*D19","v":0}]
["Awarded State Proficiency ",100,"N/A",null,{"$f":"B20*D20","v":0}]
[null,null,null,"Total Page 7:",{"$f":"SUM(E3:E20)","v":0}]

{"sheet":"Totals","index":7,"n_rows":19,"n_cols":5,"rows_kept":19,"cut":false,"hidden":false,"merged":[[18,0,18,3],[1,0,1,4],[2,0,2,4],[9,0,9,4],[10,0,10,3],[11,0,11,3],[12,0,12,3],[8,0,8,2],[13,0,13,3],[14,0,14,3],[15,0,15,3],[16,0,16,3],[17,0,17,3],[6,0,6,4]]}
["Activity:","Value:","Maximum:","Quantity:","Total:"]
["MISCELLANEOUS FFA ACTIVITIES"]
["Appreciation Breakfast (2025):"]
["Worked",40,"N/A",null,{"$f":"B4*D4","v":0}]
["Attended",15,"N/A",null,{"$f":"B5*D5","v":0}]
["Helped Clean up or set up",25,"N/A",null,{"$f":"B6*D6","v":0}]
["National Chapter Application (2025)"]
["Worked on aoolication",50,500,null,{"$f":"B8*D8","v":0}]
[null,null,null,"Total Page 8",{"$f":"SUM(E4:E8)","v":0}]
["Summary of Points:"]
["Page 1:",null,null,null,{"$f":"'Meeting, Offices & Academic'!E35","v":0}]
["Page 2:",null,null,null,{"$f":"'Committees and SAE''s'!E37","v":0}]
["Page 3:",null,null,null,{"$f":"'Fair Participation'!E23","v":0}]
["Page 4:",null,null,null,{"$f":"'BVD CDEs and LDEs'!E30","v":0}]
["Page 5:",null,null,null,{"$f":"'State CDEs, SLC and WLC'!E37","v":0}]
["Page 6:",null,null,null,{"$f":"'Conventions and Leadership'!E39","v":0}]
["Page 7:",null,null,null,{"$f":"'Financing, Recruting, Profic'!E21","v":0}]
["Page 8:",null,null,null,{"$f":"E9","v":0}]
["Grand Total:",null,null,null,{"$f":"SUM(E11:E18)","v":0}]